Workbook

Sheet Intro
B3: KSU-Economics of Spraying Field Crops
B5: An Excel spreadsheet to analyze the economics of spraying a crop field based on the anticipated yield response.
L8: Version- 7.8.16
B28: INSTRUCTIONS FOR THE USER:
B29: Be sure to "Enable Content" and "Enable Macros" for the spreadsheet to function correctly. This spreadsheet uses macros to print , however printing can also be done manually by highlighting the desired range and using the menu print commands.
B31: All blue numbers are inputs and all black numbers are calculated from these inputs. Several input cells (i.e., blue number) have a red diamond in the upper right hand corner of the cell. By moving your mouse cursor over this diamond, a brief description of the input will be displayed on the screen.
B33: FOR MORE INFORMATION:
B34: With Questions Contact: | G34: Originally Developed by:
B36: Terry Griffin | G36: Doug Jardine | K36: Kevin C. Dhuyvetter, Ph.D.
B37: Agricultural Economist | G37: Extension Plant Pathologist | K37: Former Agricultural Economist
B38: Kansas State University | G38: Kansas State University | K38: Kansas State University
B39: twgriffin@ksu.edu | G39: jardine@k-state.edu
B40: 785-532-3527 | G40: (785)-532-1386
B43: Copyright 2016 AgManager.info, K-State Department of Agricultural Economics

Sheet Spraying economics
B2: Economics of spraying field crops | Q2: Version: 7.8.2016
B4: INPUTS
C5: Estimated yield without spraying, bu/ac | H5: 35 | J5: Sensititivy Analysis -- Net Benefit of Spraying, $/ac
C6: Estimated yield response with spraying, % | H6: 0.15
C7: Estimated yield response to spraying, bu/ac | H7: =H5*H6 -> 5.25 | K7: Crop | L7: Estimated yield without spraying, bu/ac
C8: Estimated yield with spraying, bu/ac | H8: =H5*(1+H6) -> 40.25 | K8: price, $/bu | L8: =M8-P26 -> 25 | M8: =N8-P26 -> 30 | N8: =H5 -> 35 | O8: =N8+P26 -> 40 | P8: =O8+P26 -> 45
C9: Crop price, $/bu | H9: 4 | K9: =K10-P27 -> 3.5 | L9: =(L$8*$H$6*($K9-$H$12)+$H$17)-($H$10+$H$11+$H$23) -> -7.9 | M9: -5.38 | N9: -2.86 | O9: -0.34 | P9: 2.18
C10: Chemical cost, $/ac | H10: 15 | K10: =K11-P27 -> 3.75 | L10: -6.9625 | M10: -4.255 | N10: -1.5475 | O10: 1.16 | P10: 3.8675
C11: Application cost, $/ac | H11: 5.5 | K11: =H9 -> 4 | L11: -6.025 | M11: -3.13 | N11: -0.235 | O11: 2.66 | P11: 5.555
C12: Hauling cost, $/bu | H12: 0.14 | K12: =K11+P27 -> 4.25 | L12: -5.0875 | M12: -2.005 | N12: 1.0775 | O12: 4.16 | P12: 7.2425
K13: =K12+P27 -> 4.5 | L13: -4.15 | M13: -0.88 | N13: 2.39 | O13: 5.66 | P13: 8.93
B14: Partial Budget Analysis
B15: Added Income, $/ac | J15: Sensititivy Analysis -- Net Benefit of Spraying, $/ac
C16: Value of added bushels due to spraying | H16: =(H8-H5)*H9 -> 21
C17: Other | H17: 0 | K17: Chemical | L17: Estimated yield without spraying, bu/ac | Q17: Breakeven
C18: Total Added Income | H18: =H16+H17 -> 21 | K18: cost/$/ac | L18: =L8 -> 25 | M18: =M8 -> 30 | N18: =N8 -> 35 | O18: =O8 -> 40 | P18: =P8 -> 45 | Q18: yield, bu/ac
K19: =K20-P28 -> 11 | L19: =(L$8*$H$6*($H$9-$H$12)+$H$17)-($K19+$H$11+$H$23) -> -2.025 | M19: =(M$8*$H$6*($H$9-$H$12)+$H$17)-($K19+$H$11+$H$23) -> 0.87 | N19: =(N$8*$H$6*($H$9-$H$12)+$H$17)-($K19+$H$11+$H$23) -> 3.765 | O19: =(O$8*$H$6*($H$9-$H$12)+$H$17)-($K19+$H$11+$H$23) -> 6.66 | P19: =(P$8*$H$6*($H$9-$H$12)+$H$17)-($K19+$H$11+$H$23) -> 9.555 | Q19: =(K19+H$11+H$23)/(H$9-H$12) -> 4.274611399
B20: Added Cost, $/ac | K20: =K21-P28 -> 13 | L20: =(L$8*$H$6*($H$9-$H$12)+$H$17)-($K20+$H$11+$H$23) -> -4.025 | M20: -1.13 | N20: 1.765 | O20: 4.66 | P20: 7.555 | Q20: =(K20+H$11+H$23)/(H$9-H$12) -> 4.792746114
C21: Chemical cost + application cost | H21: =H10+H11 -> 20.5 | K21: =H10 -> 15 | L21: -6.025 | M21: -3.13 | N21: -0.235 | O21: 2.66 | P21: 5.555 | Q21: =(K21+H$11+H$23)/(H$9-H$12) -> 5.310880829
C22: Increased harvest and hauling cost | H22: =(H8-H5)*H12 -> 0.735 | K22: =K21+P28 -> 17 | L22: -8.025 | M22: -5.13 | N22: -2.235 | O22: 0.66 | P22: 3.555 | Q22: =(K22+H$11+H$23)/(H$9-H$12) -> 5.829015544
C23: Other | H23: 0 | K23: =K22+P28 -> 19 | L23: -10.025 | M23: -7.13 | N23: -4.235 | O23: -1.34 | P23: 1.555 | Q23: =(K23+H$11+H$23)/(H$9-H$12) -> 6.347150259
C24: Total Added Costs | H24: =SUM(H21:H23) -> 21.235
B26: Net Benefit of Spraying, $/ac | H26: =H18-H24 -> -0.235 | K26: Increment for crop yield, bu/ac | P26: 5
B27: Yield Response to Breakeven, bu/ac | H27: =(H10+H11+H23)/(H9-H12) -> 5.310880829 | K27: Increment for crop price, $/bu | P27: 0.25
B28: Yield Response to Breakeven, % | H28: =H27/H5 -> 0.1517394523 | K28: Increment for chemical cost, $/ac | P28: 2
